bitfinex/quotes_ETHUSD_20241024
["timestamp","ask_amount","ask_price","bid_price","bid_amount"]
[1729776707876,3.95476,2528.6,2528.2,0.7964]
[1729776708083,0.07889773,2528.7,2528.3,0.04202915]
[1729776708284,3.95454,2528.8,2528.3,3.95522]
[1729776708500,3.9543,2528.9,2528.4,3.99695701]
[1729776708704,4.03336773,2528.8,2528.4,0.04189701]
[1729776709512,3.9546,2528.7,2528.4,0.04189701]
[1729776709721,4.03349773,2528.7,2528.4,0.04189701]
[1729776710013,3.95479,2528.6,2528.4,0.04189701]
[1729776710220,4.03380773,2528.5,2528.4,0.04189701]
[1729776710394,3.95515,2528.4,2527.9,3.8251]
[1729776710579,4.03404773,2528.4,2527.9,7.78086]
[1729776710916,3.9553,2528.3,2527.9,3.8251]
[1729776711213,3.9553,2528.3,2527.8,6.95594]
[1729776711419,3.9553,2528.3,2527.8,12.3129486]
[1729776711603,3.9553,2528.3,2527.8,8.3570086]
[1729776711800,3.9553,2528.3,2527.9,0.07910912]
[1729776712003,3.9553,2528.3,2527.7,8.40379648]
[1729776712004,3.95539,2528.2,2527.7,8.40379648]
[1729776712188,3.95539,2528.2,2528.0,0.04232201]
[1729776712519,3.9553,2528.3,2527.7,8.40379648]
[1729776712520,3.9553,2528.3,2528.1,0.04218984]
[1729776712682,3.9553,2528.3,2527.8,3.956]
[1729776712884,3.9553,2528.3,2527.9,0.04245419]
[1729776713192,3.9553,2528.3,2527.9,3.99827419]
[1729776713797,3.95538,2528.2,2527.9,0.04245419]
[1729776714026,3.95561,2528.1,2527.9,0.04245419]
[1729776714330,3.95586,2527.9,2527.5,8.32971477]
[1729776714532,4.03460773,2528.0,2527.5,12.28608477]
[1729776714687,3.95587,2527.9,2527.5,8.32961477]
[1729776714887,4.03476773,2527.9,2527.5,8.32961477]
[1729776715127,3.95571,2528.0,2527.6,3.95623]
[1729776715693,3.95549,2528.2,2527.8,3.95592]
[1729776715922,4.03411773,2528.3,2527.6,1.63558448]
[1729776716090,4.70539,2528.4,2527.9,3.95583]
[1729776716301,0.07889773,2528.3,2527.9,3.95583]
[1729776716503,0.07889773,2528.3,2527.9,7.9115]
[1729776716812,0.07889773,2528.3,2527.8,3.95598]
[1729776717127,3.95539,2528.2,2527.8,3.95598]
[1729776717305,3.95539,2528.2,2527.7,3.0]
[1729776717306,4.03454773,2528.1,2527.7,3.0]
[1729776717722,3.95587,2527.9,2527.6,3.0]
[1729776717891,3.95549,2528.2,2527.6,6.95631]
[1729776718092,4.03444773,2528.1,2527.6,6.95621]
[1729776718320,3.95579,2528.0,2527.6,3.0]
[1729776718504,3.95579,2528.0,2527.5,8.32971477]
[1729776718505,4.03486773,2527.9,2527.5,8.32971477]
[1729776718691,3.95597,2527.9,2527.5,8.32971477]
[1729776719013,3.95597,2527.9,2527.5,4.37324477]
[1729776719212,0.07889773,2527.9,2527.5,1.37324477]
[1729776719414,3.95607,2527.8,2527.5,0.61904477]
[1729776719619,0.83969773,2527.9,2527.5,0.61904477]
[1729776719830,0.7608,2528.3,2527.9,3.95577]
[1729776719993,0.7608,2528.6,2528.1,4.72869]
[1729776720198,0.7608,2528.6,2528.1,0.7733]
[1729776720199,3.95504,2528.5,2528.1,0.7733]
[1729776720395,0.07889773,2528.4,2528.1,0.7733]
[1729776721033,3.95504,2528.5,2528.1,4.72881]
[1729776721239,0.07889773,2528.6,2528.1,1.641743]
[1729776721531,3.95486,2528.6,2528.1,5.597253]
[1729776721838,0.07889773,2528.6,2528.2,3.9553]
[1729776721995,0.07889773,2528.6,2528.1,4.72881]
[1729776722191,4.03374773,2528.6,2528.1,8.68426]
[1729776722433,4.03374773,2528.6,2528.2,3.95532]
[1729776722619,3.95492,2528.5,2528.1,4.72875]
[1729776722791,0.07889773,2528.5,2528.1,4.72875]
[1729776722991,3.95485,2528.6,2528.2,3.95538]
[1729776723617,0.07889773,2528.5,2528.1,4.72873]
[1729776723819,4.03374773,2528.6,2528.1,4.72873]
[1729776724021,3.95544,2528.2,2527.8,3.0]
[1729776724334,3.95544,2528.2,2527.7,3.95608]
[1729776724335,4.03433773,2528.2,2527.7,3.95608]
[1729776725132,3.95579,2528.0,2527.7,3.0]
[1729776725440,3.95579,2528.0,2527.6,0.8564181]
[1729776725937,3.95588,2527.9,2527.6,0.7773]
[1729776726099,3.95601,2527.8,2527.5,3.61904477]
[1729776726296,7.91212,2527.8,2527.5,0.61904477]
[1729776726655,3.95608,2527.8,2527.4,4.07]
[1729776726841,3.95601,2527.8,2527.4,4.07]
[1729776726995,3.95601,2527.8,2527.1,5.68533133]
[1729776726996,3.95643,2527.6,2527.5,0.04068283]
[1729776727195,3.95689,2527.3,2526.9,2.47204953]
[1729776727430,3.95654,2527.5,2527.0,1.9]
[1729776727610,3.95654,2527.5,2527.0,1.97913628]
[1729776727811,3.95681,2527.3,2527.0,1.9]
[1729776728350,3.9579,2526.6,2525.9,1.65094953]
[1729776728494,0.07889773,2526.5,2526.1,3.95855]
[1729776728694,4.03662773,2526.7,2525.9,6.89023848]
[1729776729195,4.03674773,2526.7,2526.2,3.05669818]
[1729776729426,0.8205,2527.1,2526.2,3.05669818]
[1729776729427,3.95749,2526.9,2526.2,3.05669818]
[1729776729749,3.95749,2526.9,2526.3,0.07915997]
[1729776729938,0.07889773,2526.8,2526.2,3.05669818]
[1729776730242,3.95774,2526.7,2526.2,3.05669818]
[1729776730441,3.95774,2526.7,2526.2,0.1253397]
[1729776730743,3.95749,2526.9,2526.3,0.07916031]
[1729776731322,0.07889773,2527.0,2526.4,0.55]
[1729776731517,0.8205,2527.1,2526.6,0.55]
[1729776731761,4.03576773,2527.3,2526.7,0.07915032]
[1729776731961,4.03576773,2527.3,2526.8,0.55]
[1729776732282,4.03576773,2527.3,2526.7,0.55]
[1729776732626,4.03576773,2527.3,2526.6,3.0]
[1729776732825,3.95732,2527.0,2526.6,3.0]
[1729776733037,3.95719,2527.1,2526.6,3.0791475]
[1729776733337,3.95719,2527.1,2526.6,3.07914961]
[1729776733717,3.95719,2527.1,2526.6,7.03702961]
[1729776733939,3.95683,2527.3,2526.7,1.62141775]
[1729776734140,0.07889773,2527.2,2526.7,5.10817187]
[1729776734353,0.07889773,2527.2,2526.7,1.07141775]
[1729776734566,3.95711,2527.1,2526.7,1.07141775]
[1729776734858,3.95752,2526.9,2526.5,3.0]
[1729776735220,4.78159,2527.4,2526.4,4.75775]
[1729776735221,3.9572,2527.1,2526.4,4.75775]
[1729776735421,3.9572,2527.1,2526.6,3.95787]
[1729776735626,0.07889773,2527.0,2526.6,1.54719175]
[1729776735865,3.95752,2526.9,2526.5,3.0]
[1729776736019,3.95788,2526.7,2526.3,3.0]
[1729776736224,0.07889773,2526.7,2526.3,3.0]
[1729776736454,4.03653773,2526.8,2526.2,3.75248756]
[1729776736658,4.03673773,2526.7,2526.2,3.75248756]
[1729776736856,3.95751,2526.9,2526.2,4.68133171]
[1729776737231,0.07889773,2526.8,2526.2,4.60217232]
[1729776737433,3.95784,2526.7,2526.2,8.56059232]
[1729776737767,3.95784,2526.7,2526.3,3.0]
[1729776737938,0.07889773,2526.6,2526.3,3.0]
[1729776738265,4.03686773,2526.6,2526.2,3.0753397]
[1729776738760,0.07889773,2526.6,2526.2,3.0753397]
[1729776738965,3.95804,2526.5,2526.2,0.0753397]
[1729776739337,0.07889773,2526.4,2526.2,0.0753397]
[1729776739522,3.95835,2526.3,2526.2,0.0753397]
[1729776739726,4.03724773,2526.3,2526.2,0.0753397]
[1729776740137,0.07889773,2526.3,2526.2,0.0753397]
[1729776740774,4.03724773,2526.3,2526.2,0.0753397]
[1729776741066,4.8367995,2526.3,2526.2,0.0753397]
[1729776741535,5.6266995,2526.3,2526.2,0.0753397]
[1729776742255,5.6366995,2526.3,2526.2,0.0753397]
[1729776743439,0.7647,2525.9,2525.0,0.00082758]
[1729776743647,3.96002,2525.3,2525.0,0.00082758]
[1729776743855,3.96002,2525.3,2525.1,0.04339244]
[1729776743856,0.07889773,2525.2,2525.1,0.04339244]
[1729776744429,3.96002,2525.3,2525.1,0.04339244]
[1729776744662,0.07889773,2525.2,2525.1,0.04339244]
[1729776744836,4.03876773,2525.4,2525.1,0.04339244]
[1729776745056,0.07889773,2525.4,2525.1,0.04339244]
[1729776745260,4.03870773,2525.4,2525.1,0.04339244]
[1729776746843,0.07889773,2525.4,2525.1,0.04339244]
[1729776747049,4.72377,2525.9,2525.3,3.95992]
[1729776747050,3.95915,2525.8,2525.3,3.95992]
[1729776747271,0.7647,2525.9,2525.1,0.04339244]
[1729776747272,3.95945,2525.6,2525.1,0.04339244]
[1729776747488,0.07889773,2525.5,2525.4,0.04302155]
[1729776747692,0.86059773,2525.6,2524.8,2.95082758]
[1729776747983,3.95961,2525.5,2524.8,6.91142758]
[1729776748190,0.07889773,2525.4,2524.9,0.04363975]
[1729776748489,4.03866773,2525.4,2525.0,3.96039]
[1729776748653,4.03866773,2525.4,2524.9,0.04363975]
[1729776748854,4.03866773,2525.4,2525.1,0.04339244]
[1729776749048,4.03866773,2525.4,2525.0,0.04351609]
[1729776749255,0.07889773,2525.4,2525.2,0.0432688]
[1729776749478,0.07889773,2525.4,2525.2,3.96008]
[1729776749676,0.07889773,2525.4,2525.3,0.04314517]
[1729776749893,0.07889773,2525.5,2525.3,0.04314517]
[1729776750079,0.07889773,2525.6,2525.3,3.95982]
[1729776750245,0.07889773,2525.6,2525.4,0.04302155]
[1729776750590,0.07889773,2525.6,2525.0,4.77238]
[1729776750892,0.07889773,2525.6,2525.2,3.95997]
[1729776751089,3.95961,2525.5,2525.1,0.04339244]
[1729776751391,0.07889773,2525.4,2525.2,0.0432688]
[1729776751687,0.07889773,2525.4,2525.0,3.96031]
[1729776751891,0.07889773,2525.4,2525.3,0.04314517]
[1729776752367,0.07889773,2525.6,2525.2,3.96007]
[1729776752563,0.07889773,2525.6,2525.3,0.04407183]
[1729776752768,4.03839773,2525.6,2525.2,3.96007]
[1729776752968,4.03839773,2525.6,2525.3,0.04407183]
[1729776753173,0.07889773,2525.5,2525.2,3.96007]
[1729776753467,0.07889773,2525.5,2525.3,0.04407183]
[1729776753870,0.07889773,2525.5,2525.3,3.95991]
[1729776754065,4.03822773,2525.7,2525.4,0.04394821]
[1729776754586,0.07889773,2525.7,2525.4,0.04394821]
[1729776754767,0.85349773,2525.9,2525.4,0.52061603]
[1729776754973,0.85349773,2525.9,2525.5,3.95961]
[1729776754974,0.07889773,2525.8,2525.5,3.95961]
[1729776755298,0.07889773,2525.7,2525.6,4.00314727]
[1729776755465,0.07889773,2526.0,2525.6,2.98067121]
[1729776755664,3.95871,2526.1,2525.7,3.95923]
[1729776755865,4.03760773,2526.1,2525.7,3.95923]
[1729776756054,4.03760773,2526.1,2525.8,0.0434017]
[1729776756255,3.95882,2526.0,2525.8,0.0434017]
[1729776756458,3.95882,2526.0,2525.5,3.95951]
[1729776756459,0.07889773,2525.9,2525.5,3.95951]
[1729776756770,0.07889773,2525.9,2525.2,3.69987394]
[1729776756771,3.95915,2525.8,2525.3,3.95979]
[1729776756966,4.03827773,2525.7,2525.4,0.04389608]
[1729776757171,3.95945,2525.6,2525.4,0.04389608]
[1729776757356,0.7954,2525.7,2525.3,3.9599]
[1729776757701,4.83361773,2525.7,2525.4,0.04389608]
[1729776757883,0.87429773,2525.7,2525.4,0.04389608]
[1729776758091,0.07889773,2525.9,2525.5,6.89645394]
[1729776758282,0.07889773,2525.9,2525.6,3.95938]
[1729776758482,0.07889773,2525.9,2525.5,7.63772063]
[1729776758687,4.03801773,2525.9,2525.7,0.04345455]
[1729776758887,4.03801773,2525.9,2525.6,0.04357442]
[1729776759070,4.03801773,2525.9,2525.8,0.04332724]
[1729776759270,3.95914,2525.8,2525.7,0.04345083]
[1729776759476,0.07889773,2525.8,2525.4,3.95975]
[1729776759671,4.03788773,2525.9,2525.5,3.95961]
[1729776760289,0.7858,2526.3,2525.7,3.95916]
[1729776760461,3.95874,2526.1,2525.6,3.95943]
[1729776760667,0.07889773,2526.0,2525.6,7.91878]
[1729776760899,0.07889773,2526.1,2525.8,3.95911]
[1729776761098,4.72718,2526.6,2526.1,3.95859]
[1729776761312,0.07889773,2526.7,2526.4,3.95819]
[1729776761512,4.80579773,2526.8,2526.4,3.95813]
[1729776761719,0.84819773,2526.8,2526.4,3.95813]
[1729776761861,0.7693,2526.8,2526.3,0.07915954]
[1729776762187,3.95727,2527.0,2526.6,3.95781]
[1729776762390,0.07889773,2527.1,2526.6,3.95781]
[1729776762391,0.07889773,2526.9,2526.6,3.95781]
[1729776762589,0.07889773,2527.1,2526.6,7.91562]
[1729776762789,0.07889773,2527.1,2526.7,3.95767]
[1729776762995,4.03602773,2527.1,2526.6,3.95779]
[1729776763312,0.01,2527.7,2526.6,3.95779]
[1729776763313,3.95666,2527.4,2526.9,3.95731]
[1729776763608,3.95697,2527.2,2526.8,4.72556]
[1729776763811,4.03586773,2527.2,2526.8,4.72556]
[1729776763969,0.07889773,2527.2,2526.8,8.68305]
[1729776764168,0.07889773,2527.2,2526.8,4.72549]
[1729776764404,0.07889773,2527.2,2526.9,3.95741]
[1729776764612,0.07889773,2527.2,2526.8,8.68296]
[1729776764874,0.07889773,2527.2,2526.8,6.04053986]
[1729776765029,4.03554773,2527.4,2526.9,3.95739]
[1729776765228,4.03553773,2527.4,2527.0,3.95723]
[1729776765731,3.95679,2527.3,2526.9,3.9574]
[1729776766016,4.03553773,2527.4,2526.9,3.9574]
[1729776766215,4.03553773,2527.4,2526.9,8.91451699]
[1729776766414,4.03553773,2527.4,2526.9,4.95711699]
[1729776766626,4.03553773,2527.4,2527.0,3.95722]
[1729776766925,4.03553773,2527.4,2526.9,4.95711699]
[1729776767126,4.03553773,2527.4,2526.9,8.91444699]
[1729776767419,4.03554773,2527.4,2526.9,8.91444699]
[1729776767781,0.07889773,2527.4,2527.1,3.95697]
[1729776768127,3.95626,2527.7,2527.3,3.95671]
[1729776768326,0.07889773,2527.6,2527.2,7.63304657]
[1729776768530,4.03521773,2527.6,2527.2,7.63304657]
[1729776769286,4.03521773,2527.6,2527.1,3.95708]
[1729776769498,3.95648,2527.5,2527.0,6.95725]
[1729776769712,4.75328,2527.5,2527.0,6.95725]
[1729776769924,0.7968,2527.5,2527.1,3.95701]
[1729776770227,4.75337,2527.5,2527.0,6.95716]
[1729776770428,4.83226773,2527.5,2527.0,6.95716]
[1729776770627,4.83226773,2527.5,2527.1,3.95707]
[1729776770989,4.83226773,2527.5,2526.9,3.67614657]
[1729776770990,3.95694,2527.2,2526.9,0.55]
[1729776771296,3.95694,2527.2,2526.9,3.55]
[1729776771498,4.03575773,2527.3,2526.9,3.55]
[1729776772033,4.03575773,2527.3,2527.1,0.55]
[1729776772355,0.07889773,2527.3,2527.1,0.55]
[1729776772530,0.07889773,2527.3,2527.2,0.04061213]
[1729776773642,4.03568773,2527.3,2527.2,0.04061213]
[1729776773942,4.8349285,2527.3,2527.2,0.04061213]
[1729776774111,5.6190285,2527.3,2527.2,0.04061213]
[1729776774433,5.6190285,2527.3,2526.4,8.78421]
[1729776774434,1.6622385,2527.3,2526.4,8.78421]
[1729776774739,4.74183,2526.7,2526.2,3.95843]
[1729776775036,0.07889773,2526.6,2526.2,7.91684]
[1729776775332,3.95806,2526.5,2526.1,3.95865]
[1729776775538,4.03693773,2526.6,2526.1,7.91719]
[1729776775832,3.9581,2526.5,2526.2,3.0]
[1729776776037,3.95827,2526.4,2526.1,0.55]
[1729776776258,0.07889773,2526.3,2526.0,3.67614657]
[1729776776455,4.03716773,2526.4,2526.0,3.67614657]
[1729776776644,3.95837,2526.3,2526.0,3.67614657]
[1729776776846,3.95837,2526.3,2525.9,4.71507]
[1729776777044,0.07889773,2526.4,2526.0,3.95881]
[1729776777556,0.07889773,2526.4,2526.1,0.55]
[1729776777745,7.91621,2526.5,2526.1,4.50866]
[1729776777746,3.95807,2526.5,2526.1,4.50866]
[1729776778256,0.87787077,2526.6,2526.1,4.50866]
[1729776778442,3.95795,2526.6,2526.1,4.50866]
[1729776778754,4.03695773,2526.5,2526.1,4.50866]
[1729776779063,4.03695773,2526.5,2526.1,0.55]
[1729776780040,7.99509773,2526.5,2526.1,0.55]
[1729776780359,3.95806,2526.5,2526.1,0.55]
[1729776780659,4.353866,2526.5,2526.1,0.55]
[1729776780863,0.07889773,2526.4,2526.1,0.55]
[1729776781071,0.83229773,2526.4,2526.1,0.55]
[1729776781367,4.71163,2526.4,2526.1,0.55]
[1729776781546,8.71372,2527.0,2526.3,4.22614657]
[1729776781758,0.799,2527.4,2526.9,3.67614657]
[1729776781919,0.799,2527.4,2527.0,4.50719]
[1729776782118,3.95688,2527.3,2527.0,0.55]
[1729776782322,0.07889773,2527.2,2527.1,0.58922656]
[1729776782736,0.07889773,2527.3,2527.1,0.58922656]
[1729776782940,4.03576773,2527.3,2527.1,0.58922656]
[1729776783256,0.07889773,2527.3,2527.1,0.58922656]
[1729776783623,4.03572773,2527.3,2527.1,0.58922656]
[1729776784319,7.99260773,2527.3,2527.1,0.58922656]
[1729776784547,4.03583773,2527.2,2527.1,0.58922656]
[1729776784870,0.07889773,2527.2,2527.1,0.58922656]
[1729776785019,0.01,2527.9,2527.2,4.50694]
[1729776785020,3.95639,2527.6,2527.2,4.50694]
[1729776785223,0.55317673,2527.6,2527.2,4.50694]
[1729776785542,4.03522773,2527.6,2527.3,0.03897968]
[1729776785744,4.03522773,2527.6,2527.2,4.50694]
[1729776785951,3.9565,2527.5,2527.3,0.03897968]
[1729776786257,0.07889773,2527.4,2527.1,0.55]
[1729776786661,4.03554773,2527.4,2527.1,0.55]
[1729776787165,4.8347445,2527.4,2527.2,0.03910311]
[1729776787462,3.95679,2527.3,2527.2,0.03910311]
[1729776787761,0.07889773,2527.3,2527.2,0.03910311]
[1729776788082,4.03568773,2527.3,2527.2,0.03910311]
[1729776788567,4.85768773,2527.3,2527.2,0.03910311]
[1729776788772,0.7667,2527.2,2526.4,2.93235015]
[1729776788970,0.7667,2526.4,2525.8,7.64346015]
[1729776789177,3.95852,2526.2,2525.8,3.68445015]
[1729776789381,0.07889773,2526.1,2525.8,3.68445015]
[1729776789538,0.07889773,2526.2,2525.8,6.89140015]
[1729776789966,4.03741773,2526.2,2525.8,2.93235015]
[1729776791063,3.95877,2526.1,2525.8,2.93235015]
[1729776791263,0.07889773,2526.0,2525.8,2.93235015]
[1729776791462,4.72499,2526.4,2525.9,3.95887]
[1729776791775,0.07889773,2526.3,2526.1,6.89096015]
[1729776792077,4.03700773,2526.5,2526.1,2.93235015]
[1729776792281,0.07889773,2526.5,2526.1,6.89098015]
[1729776792452,0.7986,2527.0,2526.4,4.22687038]
[1729776792659,4.03620773,2527.0,2526.6,4.50782]
[1729776793363,0.07889773,2527.0,2526.6,0.55]
[1729776793572,4.03602773,2527.1,2526.6,4.50786]
[1729776793740,4.03602773,2527.1,2526.8,0.55]
[1729776794999,4.03602773,2527.1,2526.7,0.55]
[1729776795284,7.99322773,2527.1,2526.7,0.55]
[1729776795486,4.03615773,2527.0,2526.7,0.55]
[1729776795838,3.95767,2526.8,2526.5,3.0]
[1729776796039,4.03663773,2526.7,2526.5,0.55]
[1729776796280,0.07889773,2526.7,2526.5,0.55]
[1729776796782,0.07889773,2526.8,2526.5,8.46598]
[1729776797086,0.07889773,2527.1,2526.7,4.50765]
[1729776797285,0.07889773,2527.1,2526.7,5.28125]
[1729776797491,0.7952,2527.0,2526.2,3.0]
[1729776797657,0.07889773,2526.9,2526.0,0.7736]
[1729776797861,3.9578,2526.7,2526.1,3.95859]
[1729776798178,4.03678773,2526.6,2526.2,3.95844]
[1729776798493,0.07889773,2526.7,2526.3,7.63509038]
[1729776798708,3.95714,2527.1,2526.5,0.7709]
[1729776798992,0.7865,2527.2,2526.6,4.50782]
[1729776798993,4.03622773,2527.0,2526.6,4.50782]
[1729776799278,3.95743,2526.9,2526.6,0.55]
[1729776799482,3.95766,2526.8,2526.5,0.55]
[1729776799782,0.7865,2527.2,2526.5,0.55]
[1729776799783,0.07889773,2526.7,2526.5,0.55]
[1729776799990,3.95766,2526.8,2526.5,0.55]
[1729776800146,4.03664773,2526.7,2526.5,0.55]
[1729776800347,3.95788,2526.6,2526.5,0.55]
[1729776800546,3.95806,2526.5,2526.0,7.63567038]
[1729776800870,4.03695773,2526.5,2526.1,3.95865]
[1729776801057,0.07889773,2526.5,2526.1,3.95865]
[1729776801263,4.03700773,2526.5,2526.0,7.63567038]
[1729776801448,0.07889773,2526.5,2526.0,7.63567038]
[1729776801808,0.07889773,2526.6,2526.1,0.55]
[1729776802091,0.07889773,2526.7,2526.3,4.22687038]
[1729776802261,0.07889773,2526.7,2526.4,0.55]
[1729776802471,0.07889773,2526.9,2526.6,0.55]
[1729776802689,0.07889773,2526.9,2526.7,0.03858242]
[1729776803142,4.03641773,2526.9,2526.7,0.03858242]
[1729776803351,0.07889773,2526.9,2526.7,0.03858242]
[1729776803652,4.03629773,2527.0,2526.7,0.03858242]
[1729776803845,4.03629773,2527.0,2526.5,0.55]
[1729776804147,4.03629773,2527.0,2526.7,0.55]
[1729776804347,4.03629773,2527.0,2526.8,0.03845894]
[1729776804579,0.07889773,2527.0,2526.7,0.55]
[1729776804748,0.07889773,2527.0,2526.5,0.55]
[1729776805080,4.03618773,2527.0,2526.7,0.55]
[1729776805281,0.07889773,2527.0,2526.7,0.55]
[1729776805581,3.95712,2527.1,2526.8,0.03845894]
[1729776805747,0.07889773,2527.0,2526.7,0.55]
[1729776805950,4.03623773,2527.0,2526.8,0.03845894]
[1729776806158,3.95741,2526.9,2526.6,0.55]
[1729776806364,4.03630773,2526.9,2526.7,0.03858242]
[1729776806965,0.07889773,2526.9,2526.7,0.03858242]
[1729776808479,0.777,2527.3,2526.8,0.55]
[1729776808698,3.95676,2527.4,2527.0,0.55]
[1729776808866,0.07889773,2527.3,2527.0,0.55]
[1729776809207,4.03580773,2527.3,2527.1,0.03808855]
[1729776809567,3.95694,2527.2,2527.1,0.03808855]
[1729776809769,4.03583773,2527.2,2527.1,0.03808855]
[1729776809971,4.5840728,2527.2,2527.1,0.03808855]
[1729776810391,4.03583773,2527.2,2527.1,0.03808855]
[1729776810603,0.07889773,2527.2,2527.1,0.03808855]
[1729776810970,4.03554773,2527.4,2527.1,0.03808855]
[1729776811364,3.9568,2527.3,2527.1,0.03808855]
[1729776811600,4.03583773,2527.2,2527.1,0.03808855]
[1729776811811,0.07889773,2527.2,2527.1,0.03808855]
[1729776812105,4.03583773,2527.2,2527.1,0.03808855]
[1729776812319,4.8351015,2527.2,2527.1,0.03808855]
[1729776812614,5.5884015,2527.2,2527.1,0.03808855]
[1729776812775,3.95778,2526.7,2526.2,3.95844]
[1729776813165,3.95778,2526.7,2526.3,0.03899116]
[1729776813166,3.95811,2526.5,2526.3,0.03899116]
[1729776813366,3.95811,2526.5,2526.1,4.73574]
[1729776813594,3.95825,2526.4,2526.2,0.03907389]
[1729776813809,3.958,2526.6,2526.2,0.03907389]
[1729776814008,0.07889773,2526.5,2526.2,0.03907389]
[1729776814179,3.9582,2526.4,2526.3,0.55]
[1729776814392,3.95835,2526.3,2525.9,2.93465073]
[1729776814588,3.95811,2526.5,2526.0,3.95875]
[1729776814819,4.03700773,2526.5,2526.2,2.93465073]
[1729776815321,3.95811,2526.5,2526.2,2.93465073]
[1729776816002,3.95821,2526.4,2526.2,2.93465073]
[1729776816208,0.07889773,2526.4,2525.9,6.89361073]
[1729776816435,0.07889773,2526.3,2526.0,0.55]
[1729776816578,3.95863,2526.2,2525.9,2.93465073]
[1729776816783,3.9584,2526.3,2525.9,6.89360073]
[1729776817102,4.03739773,2526.3,2526.0,0.04230449]
[1729776817299,3.9585,2526.3,2526.0,0.04230449]
[1729776817804,3.95851,2526.2,2526.0,0.04230449]
[1729776817995,4.03756773,2526.1,2526.0,0.04230449]
[1729776818206,3.95913,2525.9,2525.5,0.816]
[1729776818412,4.03810773,2525.8,2525.6,0.0399822]
[1729776818598,4.03810773,2525.8,2525.3,3.75685073]
[1729776818933,4.03810773,2525.8,2525.4,0.04023683]
[1729776819395,3.95938,2525.7,2525.4,0.04023683]
[1729776819596,0.07889773,2525.6,2525.4,0.04023683]
[1729776819930,4.03847773,2525.6,2525.4,0.04023683]
[1729776820108,3.95961,2525.5,2525.4,0.04023683]
[1729776820294,4.03850773,2525.5,2525.4,0.04023683]
[1729776820498,3.96029,2525.1,2524.7,7.68060073]
[1729776820693,0.07889773,2525.0,2524.7,3.71985073]
[1729776820891,0.07889773,2525.0,2524.4,6.89597073]
[1729776820892,3.96057,2524.9,2524.4,6.89597073]
[1729776821125,0.07889773,2524.8,2524.4,6.89597073]
[1729776821326,0.07889773,2524.8,2524.4,2.93465073]
[1729776821498,0.5633945,2524.8,2524.0,0.7559]
[1729776821825,3.96143,2524.4,2523.9,6.89676073]
[1729776822026,0.07889773,2524.3,2523.9,2.93465073]
[1729776822330,0.07889773,2524.3,2524.1,3.96178]
[1729776822629,0.07889773,2524.4,2524.1,3.91178]
[1729776822999,0.07889773,2524.6,2524.1,0.7559]
[1729776823182,0.8122,2524.8,2524.3,3.68363517]
[1729776823696,0.86949773,2525.1,2524.6,7.64455517]
[1729776823904,0.07889773,2525.0,2524.6,7.64455517]
[1729776824337,0.07889773,2525.0,2524.7,0.55]
[1729776824487,0.7906,2525.4,2525.1,0.55]
[1729776824683,4.03834773,2525.6,2525.1,0.55]
[1729776824888,0.07889773,2525.6,2525.1,0.55]
[1729776825126,4.74996,2525.7,2525.1,0.55]
[1729776825427,0.07889773,2525.6,2525.3,0.55]
[1729776825736,3.95914,2525.8,2525.3,0.55]
[1729776825890,0.07889773,2525.7,2525.3,0.55]
[1729776826085,0.07889773,2525.9,2525.3,4.50985]
[1729776826286,0.07889773,2525.9,2525.5,0.55]
[1729776826491,4.03788773,2525.9,2525.5,0.55]
[1729776826831,4.03788773,2525.9,2525.3,0.55]
[1729776826992,3.95917,2525.8,2525.3,0.55]
[1729776827188,0.07889773,2525.7,2525.3,0.55]
[1729776827388,4.03787773,2525.9,2525.3,0.55]
[1729776827590,0.07889773,2525.9,2525.5,3.68363517]
[1729776827785,3.95863,2526.2,2525.6,0.55]
[1729776827786,3.95859,2526.2,2525.6,0.55]
[1729776828031,0.07889773,2526.1,2525.6,4.5094]
[1729776828189,0.07889773,2526.1,2525.6,3.55]
[1729776828690,0.07889773,2526.2,2525.6,3.55]
[1729776828885,0.07889773,2526.2,2525.8,0.55]
[1729776829091,4.81414773,2526.3,2525.8,4.23363517]
[1729776829396,4.03734773,2526.3,2525.8,5.04863517]
[1729776829730,4.03734773,2526.3,2525.8,4.23363517]
[1729776829901,3.95852,2526.2,2525.8,4.23363517]
[1729776830085,0.07889773,2526.2,2525.8,4.23363517]
[1729776830288,0.07889773,2526.2,2525.8,4.76893094]
[1729776830494,0.65329606,2528.1,2526.2,0.55]
[1729776830495,3.95751,2526.9,2526.2,0.55]
[1729776830703,3.95759,2526.8,2526.5,0.55]
[1729776830992,0.07889773,2526.7,2526.5,0.55]
[1729776831212,4.03631773,2526.9,2526.5,0.55]
[1729776831618,4.03640773,2526.9,2526.5,0.55]
[1729776832033,0.07889773,2526.9,2526.6,0.03780886]
[1729776832193,0.07889773,2527.2,2526.7,5.03693517]
[1729776832398,0.75,2527.6,2526.7,5.03693517]
[1729776832399,4.03521773,2527.6,2527.2,0.55]
[1729776832743,3.9565,2527.5,2527.3,0.03694461]
[1729776833092,3.9565,2527.5,2527.2,0.55]
[1729776833389,4.03523773,2527.6,2527.3,0.04618077]
[1729776833594,3.95621,2527.7,2527.2,0.55]
[1729776833809,4.351831,2527.7,2527.3,0.04618077]
[1729776834003,0.47451873,2527.7,2527.4,0.55]
[1729776834332,3.95602,2527.8,2527.5,0.04587222]
[1729776834543,3.95596,2527.9,2527.5,0.04587222]
[1729776834544,0.07889773,2527.7,2527.5,0.04587222]
[1729776834832,3.95618,2527.7,2527.6,0.04571796]
[1729776835135,0.07889773,2527.8,2527.4,0.55]
[1729776835136,3.95632,2527.6,2527.4,0.55]
[1729776835321,0.395632,2527.5,2527.2,0.55]
[1729776835522,3.9565,2527.5,2527.2,0.55]
[1729776835704,4.03539773,2527.5,2527.0,0.55]
[1729776836038,4.03539773,2527.5,2527.2,0.55]
[1729776836039,3.95664,2527.4,2527.2,0.55]
[1729776836329,3.95643,2527.6,2527.1,3.68363517]
[1729776836531,0.07889773,2527.5,2527.2,0.55]
[1729776836692,0.07889773,2527.6,2527.2,0.55]
[1729776836894,0.8780245,2527.6,2527.2,0.55]
[1729776837109,3.95611,2527.8,2527.5,0.55]
[1729776838025,7.91223,2527.8,2527.5,0.55]